[Event "*** Titled Tuesday 3|2 Blitz"]
[Site "Chess.com"]
[Date "2015.12.01"]
[Round "9"]
[White "AndreyOstrovskiy"]
[Black "oskariot"]
[Result "1-0"]
[WhiteElo "2428"]
[BlackElo "2252"]
[TimeControl "180+2"]
[EndTime "13:00:41 PST"]
[Termination "AndreyOstrovskiy won by resignation"]

1. e4 {[%clk 0:03:01.9]} 1... c5 {[%clk 0:03:00.8]} 2. Nf3 {[%clk 0:03:00.9]}
2... d6 {[%clk 0:03:02]} 3. d4 {[%clk 0:03:01.6]} 3... cxd4 {[%clk 0:03:03.9]}
4. Nxd4 {[%clk 0:03:03.5]} 4... Nf6 {[%clk 0:03:05.2]} 5. Nc3 {[%clk 0:03:04.9]}
5... Nc6 {[%clk 0:03:06.9]} 6. Bc4 {[%clk 0:03:05.3]} 6... e6 {[%clk 0:03:07.6]}
7. O-O {[%clk 0:03:05.9]} 7... Be7 {[%clk 0:03:08.3]} 8. Be3 {[%clk 0:03:07.1]}
8... O-O {[%clk 0:03:07]} 9. Kh1 {[%clk 0:03:08.1]} 9... d5 {[%clk 0:03:02.5]}
10. exd5 {[%clk 0:03:08.9]} 10... exd5 {[%clk 0:03:03.6]} 11. Bb3 {[%clk
0:03:09.9]} 11... Na5 {[%clk 0:02:40.9]} 12. f3 {[%clk 0:03:10.5]} 12... Re8
{[%clk 0:02:39.3]} 13. Bg1 {[%clk 0:03:10.7]} 13... Nxb3 {[%clk 0:02:31.6]} 14.
axb3 {[%clk 0:03:11.3]} 14... Bd6 {[%clk 0:02:31.8]} 15. Qd3 {[%clk 0:03:08.4]}
15... a6 {[%clk 0:02:31.4]} 16. Rad1 {[%clk 0:03:01.4]} 16... Qd7 {[%clk
0:02:06.5]} 17. Nde2 {[%clk 0:02:54.3]} 17... b5 {[%clk 0:01:51.5]} 18. Nxd5
{[%clk 0:02:41.4]} 18... Nxd5 {[%clk 0:01:51.8]} 19. Qxd5 {[%clk 0:02:42.6]}
19... Bb7 {[%clk 0:01:52.3]} 20. Qxd6 {[%clk 0:02:16.1]} 20... Qxd6 {[%clk
0:01:52.7]} 21. Rxd6 {[%clk 0:02:18]} 21... Rxe2 {[%clk 0:01:53.8]} 22. Rf2
{[%clk 0:02:15.2]} 22... Re1 {[%clk 0:01:36.7]} 23. Rfd2 {[%clk 0:02:11.1]}
23... h5 {[%clk 0:01:34.6]} 24. Rd7 {[%clk 0:02:09.1]} 24... Bc6 {[%clk
0:01:26.3]} 25. Rc7 {[%clk 0:02:09.6]} 25... Be8 {[%clk 0:01:25.8]} 26. h4
{[%clk 0:02:09.8]} 26... a5 {[%clk 0:01:23]} 27. Kh2 {[%clk 0:02:09.9]} 27... a4
{[%clk 0:01:24.1]} 28. b4 {[%clk 0:02:06.2]} 28... Ra6 {[%clk 0:01:17.6]} 29.
Rc8 {[%clk 0:02:03]} 29... Rae6 {[%clk 0:01:17.4]} 30. Rd5 {[%clk 0:01:58.9]}
30... R1e2 {[%clk 0:01:13.7]} 31. Rxh5 {[%clk 0:01:30.5]} 31... f6 {[%clk
0:00:59]} 32. Rd5 {[%clk 0:01:18.2]} 32... Kh7 {[%clk 0:00:55.5]} 33. Bd4 {[%clk
0:01:10.9]} 33... Bc6 {[%clk 0:00:53.1]} 34. Rdd8 {[%clk 0:00:39.2]} 34... Bxf3
{[%clk 0:00:31.6]} 35. Kg3 {[%clk 0:00:40.3]} 35... Bc6 {[%clk 0:00:09.3]} 36.
h5 {[%clk 0:00:39.3]} 36... Rxg2+ {[%clk 0:00:10.5]} 37. Kh3 {[%clk 0:00:40.8]}
37... Kh6 {[%clk 0:00:11.6]} 38. Rh8+ {[%clk 0:00:38.8]} 38... Kg5 {[%clk
0:00:12.6]} 39. Rxc6 {[%clk 0:00:37.2]} 39... Rxc6 {[%clk 0:00:13.9]} 40. Kxg2
{[%clk 0:00:38]} 40... Rxc2+ {[%clk 0:00:15.6]} 41. Kf3 {[%clk 0:00:38.3]} 41...
Rc4 {[%clk 0:00:15.3]} 42. Bc3 {[%clk 0:00:30.7]} 42... a3 {[%clk 0:00:16]} 43.
Bd2+ {[%clk 0:00:30.2]} 43... Kf5 {[%clk 0:00:17.6]} 44. bxa3 {[%clk 0:00:31.7]}
44... Rd4 {[%clk 0:00:19]} 45. Ke2 {[%clk 0:00:31.1]} 45... Rh4 {[%clk
0:00:19.7]} 46. Be3 {[%clk 0:00:30.8]} 46... Rh2+ {[%clk 0:00:20.6]} 47. Kd3
{[%clk 0:00:31.7]} 47... g5 {[%clk 0:00:20.7]} 48. Rb8 {[%clk 0:00:30]} 48...
Rxh5 {[%clk 0:00:20.2]} 49. Rxb5+ {[%clk 0:00:30.8]} 49... Kg4 {[%clk
0:00:21.7]} 50. a4 {[%clk 0:00:32.2]} 50... f5 {[%clk 0:00:23.1]} 51. a5 {[%clk
0:00:33.4]} 51... f4 {[%clk 0:00:24.7]} 52. Bb6 {[%clk 0:00:34]} 52... Rh3+
{[%clk 0:00:25.2]} 53. Ke4 {[%clk 0:00:34.3]} 53... Ra3 {[%clk 0:00:24.5]} 54.
Bd8 {[%clk 0:00:34.2]} 54... f3 {[%clk 0:00:25.4]} 55. Rxg5+ {[%clk 0:00:35.3]}
55... Kh3 {[%clk 0:00:26.8]} 56. Rf5 {[%clk 0:00:36.1]} 56... Kg2 {[%clk
0:00:27.9]} 57. Bb6 {[%clk 0:00:36.1]} 57... Ra4 {[%clk 0:00:28.4]} 58. Bc5
{[%clk 0:00:37.1]} 58... Ra3 {[%clk 0:00:29.4]} 59. b5 {[%clk 0:00:36.8]} 59...
Rxa5 {[%clk 0:00:29.1]} 60. Rg5+ {[%clk 0:00:35.9]} 60... Kh3 {[%clk 0:00:14]}
61. Kxf3 {[%clk 0:00:36.7]} 61... Kh4 {[%clk 0:00:15.3]} 62. Be3 {[%clk
0:00:37.2]} 62... Ra3 {[%clk 0:00:11]} 63. b6 {[%clk 0:00:37.3]} 63... Rb3
{[%clk 0:00:12]} 64. Rg6 {[%clk 0:00:38.5]} 1-0

[Event "*** Titled Tuesday 3|2 Blitz"]
[Site "Chess.com"]
[Date "2015.12.01"]
[Round "9"]
[White "Canairez"]
[Black "Rating-Schmating"]
[Result "1-0"]
[WhiteElo "2228"]
[BlackElo "2087"]
[TimeControl "180+2"]
[EndTime "13:00:42 PST"]
[Termination "Canairez won by checkmate"]

1. d4 {[%clk 0:03:00.8]} 1... e6 {[%clk 0:02:59.9]} 2. c4 {[%clk 0:03:02.7]}
2... Nf6 {[%clk 0:03:00.7]} 3. Nf3 {[%clk 0:03:02.7]} 3... Bb4+ {[%clk 0:03:01]}
4. Nbd2 {[%clk 0:02:58.4]} 4... Nc6 {[%clk 0:03:00.1]} 5. e3 {[%clk 0:02:56.5]}
5... d6 {[%clk 0:03:00.8]} 6. Qc2 {[%clk 0:02:57.4]} 6... e5 {[%clk 0:03:01.3]}
7. a3 {[%clk 0:02:55.9]} 7... Bxd2+ {[%clk 0:03:01]} 8. Bxd2 {[%clk 0:02:55.9]}
8... O-O {[%clk 0:03:00.8]} 9. Be2 {[%clk 0:02:56.2]} 9... Re8 {[%clk
0:02:58.4]} 10. d5 {[%clk 0:02:55.4]} 10... Nb8 {[%clk 0:02:58.4]} 11. O-O-O
{[%clk 0:02:54.4]} 11... a5 {[%clk 0:02:58.1]} 12. h3 {[%clk 0:02:54.4]} 12...
a4 {[%clk 0:02:59.2]} 13. g4 {[%clk 0:02:55.3]} 13... e4 {[%clk 0:02:59.5]} 14.
Nd4 {[%clk 0:02:56.1]} 14... c5 {[%clk 0:02:58.4]} 15. Nf5 {[%clk 0:02:52.5]}
15... Bxf5 {[%clk 0:02:52]} 16. gxf5 {[%clk 0:02:53.5]} 16... Qd7 {[%clk
0:02:50.2]} 17. Bc3 {[%clk 0:02:54.3]} 17... Qxf5 {[%clk 0:02:49.4]} 18. f4
{[%clk 0:02:56]} 18... Kh8 {[%clk 0:02:38.5]} 19. Rdg1 {[%clk 0:02:56.6]} 19...
Rg8 {[%clk 0:02:30.6]} 20. Rg5 {[%clk 0:02:56.6]} 20... Qc8 {[%clk 0:02:26.4]}
21. Rhg1 {[%clk 0:02:52.6]} 21... Nbd7 {[%clk 0:02:26]} 22. h4 {[%clk
0:02:41.4]} 22... Qd8 {[%clk 0:02:21.3]} 23. h5 {[%clk 0:02:40.9]} 23... h6
{[%clk 0:02:21.1]} 24. Rf5 {[%clk 0:02:39.7]} 24... Qe7 {[%clk 0:02:20.5]} 25.
Bd1 {[%clk 0:02:34.6]} 25... b6 {[%clk 0:02:13.7]} 26. Qh2 {[%clk 0:02:32.4]}
26... Ra7 {[%clk 0:01:59.8]} 27. Bc2 {[%clk 0:02:30.9]} 27... Raa8 {[%clk
0:02:00]} 28. Rg2 {[%clk 0:02:16.8]} 28... Ra7 {[%clk 0:01:55.5]} 29. Qg1 {[%clk
0:02:17.8]} 29... Raa8 {[%clk 0:01:56.2]} 30. Rg3 {[%clk 0:02:04.8]} 30... Kh7
{[%clk 0:01:54.3]} 31. Qh1 {[%clk 0:02:02.3]} 31... Ra7 {[%clk 0:01:51.2]} 32.
Rfg5 {[%clk 0:01:57.7]} 32... Raa8 {[%clk 0:01:36.7]} 33. Qg2 {[%clk 0:01:50.5]}
33... Qf8 {[%clk 0:01:23.1]} 34. Bxe4+ {[%clk 0:01:48]} 34... Kh8 {[%clk
0:01:18.4]} 35. Rf5 {[%clk 0:01:40.7]} 35... Qe7 {[%clk 0:01:16]} 36. Bc2 {[%clk
0:01:38.7]} 36... Rae8 {[%clk 0:01:09.6]} 37. e4 {[%clk 0:01:39.7]} 37... Nxe4
{[%clk 0:01:00.8]} 38. Bxe4 {[%clk 0:01:39.9]} 38... Qxe4 {[%clk 0:01:01.5]} 39.
Qxe4 {[%clk 0:01:41.7]} 39... Rxe4 {[%clk 0:01:01.6]} 40. Rxf7 {[%clk
0:01:43.6]} 40... Nf6 {[%clk 0:00:59.5]} 41. Rgxg7 {[%clk 0:01:33.4]} 41... Rxc4
{[%clk 0:00:40.6]} 42. Rxg8+ {[%clk 0:01:25.4]} 42... Kxg8 {[%clk 0:00:37.6]}
43. Rxf6 {[%clk 0:01:26.6]} 43... b5 {[%clk 0:00:35.9]} 44. Kb1 {[%clk
0:01:22.3]} 44... b4 {[%clk 0:00:36.1]} 45. axb4 {[%clk 0:01:23.4]} 45... cxb4
{[%clk 0:00:38]} 46. Bd2 {[%clk 0:01:18.6]} 46... Rd4 {[%clk 0:00:38.1]} 47. Bc1
{[%clk 0:01:16.2]} 47... Rxd5 {[%clk 0:00:37.6]} 48. Rxh6 {[%clk 0:01:16]} 48...
Kg7 {[%clk 0:00:38.9]} 49. Rg6+ {[%clk 0:01:16.3]} 49... Kh7 {[%clk 0:00:39.8]}
50. Rg5 {[%clk 0:01:17.3]} 50... Rd4 {[%clk 0:00:39.6]} 51. Ra5 {[%clk
0:01:15.7]} 51... a3 {[%clk 0:00:36.6]} 52. bxa3 {[%clk 0:01:15.5]} 52... bxa3
{[%clk 0:00:37.6]} 53. Rxa3 {[%clk 0:01:16.5]} 53... Kh6 {[%clk 0:00:35.4]} 54.
Rh3 {[%clk 0:01:14.6]} 54... Rd5 {[%clk 0:00:35.2]} 55. f5+ {[%clk 0:01:15.2]}
55... Kh7 {[%clk 0:00:35.6]} 56. Rf3 {[%clk 0:01:12.9]} 56... Rb5+ {[%clk
0:00:35.6]} 57. Kc2 {[%clk 0:01:13.3]} 57... Rc5+ {[%clk 0:00:36.7]} 58. Kd1
{[%clk 0:01:13.4]} 58... Rd5+ {[%clk 0:00:38.3]} 59. Bd2 {[%clk 0:01:14.7]}
59... Rb5 {[%clk 0:00:38.2]} 60. f6 {[%clk 0:01:11.6]} 60... Rb8 {[%clk
0:00:32.7]} 61. f7 {[%clk 0:01:08.8]} 61... Rf8 {[%clk 0:00:33.6]} 62. Bb4
{[%clk 0:01:06.5]} 62... Kg7 {[%clk 0:00:29.4]} 63. h6+ {[%clk 0:00:48.5]} 63...
Kg6 {[%clk 0:00:20.8]} 64. h7 {[%clk 0:00:44.9]} 64... Kxh7 {[%clk 0:00:20.3]}
65. Bxd6 {[%clk 0:00:44.7]} 65... Ra8 {[%clk 0:00:20.5]} 66. f8=Q {[%clk
0:00:45.2]} 66... Ra1+ {[%clk 0:00:22]} 67. Kc2 {[%clk 0:00:44.1]} 67... Ra2+
{[%clk 0:00:23.5]} 68. Kb3 {[%clk 0:00:44.8]} 68... Rg2 {[%clk 0:00:22.8]} 69.
Rh3+ {[%clk 0:00:43.3]} 69... Kg6 {[%clk 0:00:24.2]} 70. Qg8+ {[%clk 0:00:42.9]}
70... Kf5 {[%clk 0:00:24.8]} 71. Qxg2 {[%clk 0:00:40.5]} 71... Ke6 {[%clk
0:00:26.7]} 72. Qe4+ {[%clk 0:00:40.7]} 72... Kd7 {[%clk 0:00:28.6]} 73. Rh7+
{[%clk 0:00:41.8]} 73... Kc8 {[%clk 0:00:30.5]} 74. Qa8# {[%clk 0:00:41.3]} 1-0

[Event "*** Titled Tuesday 3|2 Blitz"]
[Site "Chess.com"]
[Date "2015.12.01"]
[Round "9"]
[White "chessbia"]
[Black "Haridaskesavan"]
[Result "1/2-1/2"]
[WhiteElo "2118"]
[BlackElo "2090"]
[TimeControl "180+2"]
[EndTime "13:00:52 PST"]
[Termination "Game drawn by stalemate"]

1. d4 {[%clk 0:03:01.9]} 1... g6 {[%clk 0:03:00]} 2. c4 {[%clk 0:03:02.2]} 2...
Bg7 {[%clk 0:03:01.1]} 3. Nc3 {[%clk 0:03:02.8]} 3... e6 {[%clk 0:03:02.7]} 4.
e4 {[%clk 0:03:00.6]} 4... Ne7 {[%clk 0:03:03.8]} 5. Be3 {[%clk 0:02:51]} 5...
d5 {[%clk 0:03:04.8]} 6. cxd5 {[%clk 0:02:46.8]} 6... exd5 {[%clk 0:03:05.1]} 7.
e5 {[%clk 0:02:46.7]} 7... O-O {[%clk 0:03:06.1]} 8. Bd3 {[%clk 0:02:45.3]} 8...
c5 {[%clk 0:03:06.8]} 9. Nge2 {[%clk 0:02:43.5]} 9... Nbc6 {[%clk 0:03:05.9]}
10. f4 {[%clk 0:02:41.8]} 10... Bg4 {[%clk 0:03:03]} 11. Qd2 {[%clk 0:02:38]}
11... Nf5 {[%clk 0:02:56.6]} 12. Bxf5 {[%clk 0:01:53.8]} 12... Bxf5 {[%clk
0:02:57]} 13. dxc5 {[%clk 0:01:51.2]} 13... Be6 {[%clk 0:02:50.4]} 14. O-O
{[%clk 0:01:48.3]} 14... f6 {[%clk 0:02:50.5]} 15. exf6 {[%clk 0:01:41.9]} 15...
Bxf6 {[%clk 0:02:49.4]} 16. Rad1 {[%clk 0:01:40.7]} 16... Qa5 {[%clk 0:02:43]}
17. Nd4 {[%clk 0:01:31.9]} 17... Nxd4 {[%clk 0:02:41.5]} 18. Bxd4 {[%clk
0:01:32.5]} 18... Bxd4+ {[%clk 0:02:24]} 19. Qxd4 {[%clk 0:01:33.2]} 19... Rad8
{[%clk 0:02:24.7]} 20. b4 {[%clk 0:01:31.6]} 20... Qa3 {[%clk 0:02:23.3]} 21.
Rde1 {[%clk 0:01:21.9]} 21... Bf7 {[%clk 0:02:22.6]} 22. Re3 {[%clk 0:01:21.2]}
22... Rfe8 {[%clk 0:02:18.8]} 23. Rxe8+ {[%clk 0:01:17.5]} 23... Rxe8 {[%clk
0:02:19.2]} 24. Nxd5 {[%clk 0:01:19]} 24... Bxd5 {[%clk 0:02:14.2]} 25. Qxd5+
{[%clk 0:01:19.8]} 25... Kg7 {[%clk 0:02:15.3]} 26. Qd7+ {[%clk 0:01:17.9]}
26... Kf8 {[%clk 0:02:13.6]} 27. f5 {[%clk 0:01:12.8]} 27... Qe3+ {[%clk
0:02:12.4]} 28. Kh1 {[%clk 0:01:11.9]} 28... Qe2 {[%clk 0:02:13.5]} 29. Rg1
{[%clk 0:01:02.7]} 29... Qe7 {[%clk 0:02:10.8]} 30. Qxe7+ {[%clk 0:00:59.3]}
30... Rxe7 {[%clk 0:02:11.6]} 31. fxg6 {[%clk 0:01:00.9]} 31... hxg6 {[%clk
0:02:12.3]} 32. a4 {[%clk 0:00:59.9]} 32... Re4 {[%clk 0:02:12.4]} 33. Rb1
{[%clk 0:01:00.5]} 33... Rc4 {[%clk 0:02:13.3]} 34. h3 {[%clk 0:01:00.3]} 34...
Kf7 {[%clk 0:02:14.1]} 35. Kh2 {[%clk 0:00:53.6]} 35... Ke6 {[%clk 0:02:12.2]}
36. Kg3 {[%clk 0:00:54.6]} 36... Kd5 {[%clk 0:02:13.4]} 37. Kf3 {[%clk 0:00:53]}
37... Kc6 {[%clk 0:02:11.4]} 38. g4 {[%clk 0:00:52.9]} 38... a5 {[%clk
0:02:12.5]} 39. bxa5 {[%clk 0:00:48.4]} 39... Rxa4 {[%clk 0:02:13.2]} 40. Rb6+
{[%clk 0:00:47.8]} 40... Kxc5 {[%clk 0:02:13.8]} 41. Rxg6 {[%clk 0:00:47.6]}
41... Ra3+ {[%clk 0:02:03.9]} 42. Kg2 {[%clk 0:00:46.8]} 42... Kd4 {[%clk
0:02:01]} 43. Rg5 {[%clk 0:00:44.7]} 43... Ke4 {[%clk 0:02:00.5]} 44. Rb5 {[%clk
0:00:44.8]} 44... Kf4 {[%clk 0:01:59.1]} 45. Rb4+ {[%clk 0:00:45.8]} 45... Kg5
{[%clk 0:01:59.4]} 46. Rxb7 {[%clk 0:00:45.3]} 46... Ra2+ {[%clk 0:01:56.7]} 47.
Kf3 {[%clk 0:00:44.7]} 47... Ra3+ {[%clk 0:01:57.6]} 48. Ke4 {[%clk 0:00:38.2]}
48... Ra4+ {[%clk 0:01:56.1]} 49. Kd3 {[%clk 0:00:33.4]} 49... Rxa5 {[%clk
0:01:53.6]} 50. Rh7 {[%clk 0:00:33]} 50... Re5 {[%clk 0:01:51.3]} 51. Kd4 {[%clk
0:00:31.4]} 51... Re1 {[%clk 0:01:50.9]} 52. Rh5+ {[%clk 0:00:31.5]} 52... Kg6
{[%clk 0:01:49.3]} 53. h4 {[%clk 0:00:27.3]} 53... Rg1 {[%clk 0:01:45.4]} 54.
Rg5+ {[%clk 0:00:28.4]} 54... Kf6 {[%clk 0:01:46.6]} 55. Ke4 {[%clk 0:00:27.3]}
55... Rh1 {[%clk 0:01:39.9]} 56. Rh5 {[%clk 0:00:28.4]} 56... Kg6 {[%clk
0:01:33.5]} 57. Kf4 {[%clk 0:00:28.5]} 57... Rf1+ {[%clk 0:01:33.5]} 58. Kg3
{[%clk 0:00:29.5]} 58... Rg1+ {[%clk 0:01:34.2]} 59. Kf3 {[%clk 0:00:30.9]}
59... Rf1+ {[%clk 0:01:34.3]} 60. Kg2 {[%clk 0:00:32.2]} 60... Rf4 {[%clk
0:01:35.3]} 61. Kg3 {[%clk 0:00:33.4]} 61... Ra4 {[%clk 0:01:35.2]} 62. Rf5
{[%clk 0:00:32.6]} 62... Ra3+ {[%clk 0:01:32.6]} 63. Rf3 {[%clk 0:00:33.5]}
63... Ra4 {[%clk 0:01:32.9]} 64. h5+ {[%clk 0:00:32]} 64... Kg7 {[%clk
0:01:31.7]} 65. Kh4 {[%clk 0:00:31.9]} 65... Ra5 {[%clk 0:01:32.3]} 66. Re3
{[%clk 0:00:30.4]} 66... Ra7 {[%clk 0:01:31.3]} 67. Re5 {[%clk 0:00:24.6]} 67...
Kf6 {[%clk 0:01:29.3]} 68. Rf5+ {[%clk 0:00:25.6]} 68... Kg7 {[%clk 0:01:29.2]}
69. Kg5 {[%clk 0:00:24.8]} 69... Rb7 {[%clk 0:01:30.1]} 70. h6+ {[%clk
0:00:25.6]} 70... Kh7 {[%clk 0:01:31.1]} 71. Kh5 {[%clk 0:00:26.4]} 71... Rb1
{[%clk 0:01:26.1]} 72. Rf7+ {[%clk 0:00:26.7]} 72... Kg8 {[%clk 0:01:25.4]} 73.
Rg7+ {[%clk 0:00:26.9]} 73... Kh8 {[%clk 0:01:26.2]} 74. g5 {[%clk 0:00:28]}
74... Rh1+ {[%clk 0:01:24]} 75. Kg6 {[%clk 0:00:29]} 75... Rxh6+ {[%clk
0:01:22.5]} 76. Kf7 {[%clk 0:00:26.8]} 76... Rf6+ {[%clk 0:01:19.3]} 77. gxf6
{[%clk 0:00:23.9]} 1/2-1/2

[Event "*** Titled Tuesday 3|2 Blitz"]
[Site "Chess.com"]
[Date "2015.12.01"]
[Round "9"]
[White "chessmaxusa"]
[Black "KnightSeeSix"]
[Result "0-1"]
[WhiteElo "2308"]
[BlackElo "2176"]
[TimeControl "180+2"]
[EndTime "13:02:02 PST"]
[Termination "KnightSeeSix won by resignation"]

1. d4 {[%clk 0:03:01.9]} 1... Nf6 {[%clk 0:02:57.5]} 2. Nf3 {[%clk 0:03:03.3]}
2... e6 {[%clk 0:02:56.7]} 3. Bf4 {[%clk 0:03:04.7]} 3... d5 {[%clk 0:02:57.3]}
4. e3 {[%clk 0:03:05.9]} 4... Nbd7 {[%clk 0:02:57.4]} 5. Bd3 {[%clk 0:03:05.9]}
5... c5 {[%clk 0:02:57.8]} 6. c3 {[%clk 0:03:06.1]} 6... h6 {[%clk 0:02:56.3]}
7. Nbd2 {[%clk 0:03:06.4]} 7... Be7 {[%clk 0:02:56.2]} 8. h3 {[%clk 0:03:06.6]}
8... b6 {[%clk 0:02:56.9]} 9. O-O {[%clk 0:03:08]} 9... Bb7 {[%clk 0:02:58]} 10.
Re1 {[%clk 0:03:09.5]} 10... Ne4 {[%clk 0:02:57.9]} 11. a4 {[%clk 0:03:10.6]}
11... O-O {[%clk 0:02:56.2]} 12. Qe2 {[%clk 0:03:06.8]} 12... c4 {[%clk
0:02:53.4]} 13. Bc2 {[%clk 0:03:06.4]} 13... f5 {[%clk 0:02:53]} 14. Ne5 {[%clk
0:02:59.3]} 14... Nxe5 {[%clk 0:02:50.2]} 15. Bxe5 {[%clk 0:03:00.2]} 15... Bd6
{[%clk 0:02:44.6]} 16. Bxd6 {[%clk 0:02:59.1]} 16... Qxd6 {[%clk 0:02:43.7]} 17.
Nf3 {[%clk 0:03:01]} 17... a5 {[%clk 0:02:31.9]} 18. Ne5 {[%clk 0:03:00.4]}
18... Rf6 {[%clk 0:02:22.4]} 19. h4 {[%clk 0:02:56.2]} 19... Qc7 {[%clk
0:02:18.1]} 20. f3 {[%clk 0:02:38.3]} 20... Nd6 {[%clk 0:02:12.9]} 21. Qf2
{[%clk 0:02:38.1]} 21... Nf7 {[%clk 0:02:08.3]} 22. Qg3 {[%clk 0:02:38.1]} 22...
Nxe5 {[%clk 0:02:02]} 23. dxe5 {[%clk 0:02:38.4]} 23... Rf7 {[%clk 0:01:59.7]}
24. Red1 {[%clk 0:02:37.8]} 24... Raf8 {[%clk 0:01:57.9]} 25. Rd4 {[%clk
0:02:39.1]} 25... Qc5 {[%clk 0:01:49.4]} 26. Qg6 {[%clk 0:02:35.5]} 26... Re7
{[%clk 0:01:45.7]} 27. g4 {[%clk 0:02:35]} 27... Bc8 {[%clk 0:01:38.1]} 28. g5
{[%clk 0:02:32]} 28... Bd7 {[%clk 0:01:32.4]} 29. gxh6 {[%clk 0:02:29]} 29...
Be8 {[%clk 0:01:31.3]} 30. Qg5 {[%clk 0:02:29.4]} 30... Kh7 {[%clk 0:01:18]} 31.
e4 {[%clk 0:01:59.1]} 31... gxh6 {[%clk 0:01:13.9]} 32. Qf4 {[%clk 0:01:56.8]}
32... Rg7+ {[%clk 0:01:10.1]} 33. Kf2 {[%clk 0:01:56.5]} 33... fxe4 {[%clk
0:01:08.8]} 34. Bxe4+ {[%clk 0:01:30.5]} 34... dxe4 {[%clk 0:01:08.7]} 35. Qxe4+
{[%clk 0:01:31.7]} 35... Bg6 {[%clk 0:01:08.1]} 36. Qe3 {[%clk 0:01:32.9]} 36...
Bh5 {[%clk 0:01:02.7]} 37. f4 {[%clk 0:01:26.4]} 37... Rfg8 {[%clk 0:00:58.9]}
38. Rh1 {[%clk 0:01:06.8]} 38... Rg2+ {[%clk 0:00:55.8]} 39. Kf1 {[%clk
0:01:08.7]} 39... R2g7 {[%clk 0:00:47.3]} 40. Rh2 {[%clk 0:01:04.5]} 40... Qc6
{[%clk 0:00:46.5]} 41. Qe4+ {[%clk 0:01:00.4]} 41... Qxe4 {[%clk 0:00:47.5]} 42.
Rxe4 {[%clk 0:01:01.7]} 42... Bg6 {[%clk 0:00:48.3]} 43. Rd4 {[%clk 0:01:00.3]}
43... Bd3+ {[%clk 0:00:49.2]} 44. Kf2 {[%clk 0:01:01.5]} 44... Rf7 {[%clk
0:00:49.4]} 45. Ke3 {[%clk 0:01:00.3]} 45... Rg3+ {[%clk 0:00:49.3]} 46. Kf2
{[%clk 0:01:01.4]} 46... Rg4 {[%clk 0:00:47.8]} 47. Ke3 {[%clk 0:01:01.9]} 47...
Rg1 {[%clk 0:00:47.1]} 48. h5 {[%clk 0:01:01.8]} 48... Re1+ {[%clk 0:00:47.4]}
49. Kf3 {[%clk 0:01:03.2]} 49... Rf1+ {[%clk 0:00:47.7]} 50. Ke3 {[%clk
0:01:04.5]} 50... Re1+ {[%clk 0:00:48.6]} 51. Kf3 {[%clk 0:01:05.8]} 51... Ra1
{[%clk 0:00:50.3]} 52. Rh4 {[%clk 0:00:59.9]} 52... Rxa4 {[%clk 0:00:48.8]} 53.
Rd6 {[%clk 0:01:01.5]} 53... Bf5 {[%clk 0:00:39.6]} 54. Rxb6 {[%clk 0:01:02.2]}
54... Ra2 {[%clk 0:00:37.4]} 55. Rh1 {[%clk 0:00:59]} 55... Rd7 {[%clk
0:00:36.6]} 56. Ke3 {[%clk 0:01:00.1]} 56... a4 {[%clk 0:00:34.3]} 57. Rd6
{[%clk 0:00:45.9]} 57... Rb7 {[%clk 0:00:31.9]} 58. Kd4 {[%clk 0:00:44.1]} 58...
Raxb2 {[%clk 0:00:29.7]} 59. Ra1 {[%clk 0:00:39.2]} 59... Rc7 {[%clk 0:00:21.8]}
60. Rxa4 {[%clk 0:00:37.6]} 60... Rd2+ {[%clk 0:00:22.9]} 61. Ke3 {[%clk
0:00:37.5]} 61... Rd3+ {[%clk 0:00:23.5]} 62. Rxd3 {[%clk 0:00:37.7]} 62... cxd3
{[%clk 0:00:24.5]} 63. Kd2 {[%clk 0:00:39]} 63... Kg7 {[%clk 0:00:23.8]} 64. c4
{[%clk 0:00:36.1]} 64... Kf7 {[%clk 0:00:24.1]} 65. Kc3 {[%clk 0:00:37.1]} 65...
Rd7 {[%clk 0:00:22.8]} 66. Ra2 {[%clk 0:00:38.3]} 66... Bg4 {[%clk 0:00:21.1]}
67. Rd2 {[%clk 0:00:35.3]} 67... Be2 {[%clk 0:00:20.6]} 68. c5 {[%clk 0:00:33]}
68... Ke7 {[%clk 0:00:20.5]} 69. Kc4 {[%clk 0:00:34.1]} 69... Bxh5 {[%clk
0:00:19.8]} 70. Kb5 {[%clk 0:00:34.2]} 70... Bf3 {[%clk 0:00:19.3]} 71. c6
{[%clk 0:00:28.1]} 71... Rc7 {[%clk 0:00:17.4]} 72. Rxd3 {[%clk 0:00:29.2]}
72... Be2 {[%clk 0:00:09.4]} 73. Kb6 {[%clk 0:00:30.3]} 73... Rxc6+ {[%clk
0:00:10.4]} 74. Kxc6 {[%clk 0:00:30.5]} 74... Bxd3 {[%clk 0:00:11.6]} 75. Kc5
{[%clk 0:00:31.7]} 75... h5 {[%clk 0:00:12]} 76. Kd4 {[%clk 0:00:33.6]} 76...
Bf5 {[%clk 0:00:13.1]} 77. Ke3 {[%clk 0:00:34.8]} 77... h4 {[%clk 0:00:14.4]}
78. Kf3 {[%clk 0:00:36.7]} 78... h3 {[%clk 0:00:15.7]} 79. Kg3 {[%clk
0:00:38.1]} 79... Kd7 {[%clk 0:00:17.1]} 80. Kh2 {[%clk 0:00:40]} 80... Kc6
{[%clk 0:00:18.4]} 81. Kg3 {[%clk 0:00:41.9]} 81... Kc5 {[%clk 0:00:19.7]} 82.
Kh2 {[%clk 0:00:43.8]} 82... Kc4 {[%clk 0:00:21.2]} 83. Kg3 {[%clk 0:00:45.7]}
83... Kd3 {[%clk 0:00:22.7]} 84. Kh2 {[%clk 0:00:47.6]} 84... Ke4 {[%clk
0:00:24.1]} 85. Kg3 {[%clk 0:00:49.5]} 85... Ke3 {[%clk 0:00:25.5]} 86. Kh2
{[%clk 0:00:48.8]} 86... Kxf4 {[%clk 0:00:26.5]} 87. Kg1 {[%clk 0:00:50]} 87...
Kg3 {[%clk 0:00:27.7]} 88. Kf1 {[%clk 0:00:51.3]} 88... h2 {[%clk 0:00:28.8]}
89. Ke2 {[%clk 0:00:53.2]} 89... h1=Q {[%clk 0:00:30]} 0-1